2CCN - Level 2 Cost Centre Name,,9CCN - Level 9 Cost Centre Name,9CCC - Level 9 Cost Centre Code,9AN - Level 9 Account Name,9AC - Level 9 Account Code,Date posted,Date of transaction,Merchant Name,Merchant City,Merchant State,Merchant Zip Code,Originating Account Name,,MCC/SIC Code,MCC Description,Original Amount,Currency,Conversion Rate,Billed Amount,Debit Credit,Reference Number,Statement Cycle,Account Name
Gloucester City Council,23UE,Countryside Unit,EP003,Books & Publications,3401,06/01/2017,05/01/2017,PAYPAL *NATUREBUREA,01635550380,GBR,TW91EH,REDACTED,556*********6734,8999,PROFESSIONAL SERVICES NOT ELSEWHERE CLASSIFIED,16.5,Pound Sterling (826),1.000000000,16.5,Debit,85130087005700853175652,02/02/2017,GLOUCESTER CC
Gloucester City Council,23UE,Countryside Unit,EP003,General Supplies/Materials,3025,31/01/2017,30/01/2017,WWW.HAITHS.COM,INTERNET,GBR,DN37 9TU,REDACTED,556*********6734,5995,PET SHOPS-PET FOOD AND SUPPLY STORES,24.94,Pound Sterling (826),1.000000000,24.94,Debit,45425157031040237801971,02/02/2017,GLOUCESTER CC
Gloucester City Council,23UE,TIC Trading,TI003,Supplies For Resale,3020,12/01/2017,11/01/2017,WWW.THEWORKS.CO.UK,SUTTON COLDFI,,B76 1RN,REDACTED,556*********4786,5310,DISCOUNT STORES,25.5,Pound Sterling (826),1.000000000,25.5,Debit,05230657012790076796952,02/02/2017,GLOUCESTER CC
Gloucester City Council,23UE,TIC Trading,TI003,Supplies For Resale,3020,12/01/2017,11/01/2017,THE WORKS,GLOUCESTER,,GL1 2NG,REDACTED,556*********4786,5310,DISCOUNT STORES,51.96,Pound Sterling (826),1.000000000,51.96,Debit,05230657012340075179964,02/02/2017,GLOUCESTER CC
Gloucester City Council,23UE,TIC Trading,TI003,Supplies For Resale,3020,01/02/2017,31/01/2017,ROYAL MAIL,EDINBURGH,GBR,EH12 9EB,REDACTED,556*********4786,9402,POSTAGE STAMPS,358,Pound Sterling (826),1.000000000,358,Debit,65425157032050334889693,02/02/2017,GLOUCESTER CC
Gloucester City Council,23UE,Homelessness,HS002,B&B Payments,1303,04/01/2017,03/01/2017,TRAVELODGE GB0000,THAME,,OX9 3AT,REDACTED,556*********4774,3615,TRAVELODGE,320,Pound Sterling (826),1.000000000,320,Debit,55504437003298177213341,02/02/2017,GLOUCESTER CC
Gloucester City Council,23UE,Homelessness,HS003,B&B Payments,1303,16/01/2017,13/01/2017,TRAVELODGE GB0000,THAME,,OX9 3AT,REDACTED,556*********4774,3615,TRAVELODGE,217,Pound Sterling (826),1.000000000,217,Debit,55504437013298150549479,02/02/2017,GLOUCESTER CC
Gloucester City Council,23UE,Homelessness,HS004,B&B Payments,1303,17/01/2017,16/01/2017,TRAVELODGE GB0000,THAME,,OX9 3AT,REDACTED,556*********4774,3615,TRAVELODGE,59,Pound Sterling (826),1.000000000,59,Debit,55504437016298171808760,02/02/2017,GLOUCESTER CC
Gloucester City Council,23UE,Homelessness,HS005,B&B Payments,1303,18/01/2017,17/01/2017,TRAVELODGE GB0000,THAME,,OX9 3AT,REDACTED,556*********4774,3615,TRAVELODGE,405.5,Pound Sterling (826),1.000000000,405.5,Debit,55504437017298179129333,02/02/2017,GLOUCESTER CC
Gloucester City Council,23UE,Homelessness,HS006,B&B Payments,1303,18/01/2017,17/01/2017,TRAVELODGE GB0000,THAME,,OX9 3AT,REDACTED,556*********4774,3615,TRAVELODGE,67,Pound Sterling (826),1.000000000,67,Debit,55504437017298179053590,02/02/2017,GLOUCESTER CC
Gloucester City Council,23UE,Homelessness,HS007,B&B Payments,1303,18/01/2017,17/01/2017,TRAVELODGE GB0000,THAME,,OX9 3AT,REDACTED,556*********4774,3615,TRAVELODGE,288,Pound Sterling (826),1.000000000,288,Debit,55504437017298179049945,02/02/2017,GLOUCESTER CC
Gloucester City Council,23UE,Homelessness,HS008,B&B Payments,1303,18/01/2017,17/01/2017,TRAVELODGE GB0000,THAME,,OX9 3AT,REDACTED,556*********4774,3615,TRAVELODGE,385,Pound Sterling (826),1.000000000,385,Debit,55504437017298179019120,02/02/2017,GLOUCESTER CC
Gloucester City Council,23UE,Homelessness,HS009,B&B Payments,1303,19/01/2017,18/01/2017,TRAVELODGE GB0000,THAME,,OX9 3AT,REDACTED,556*********4774,3615,TRAVELODGE,255,Pound Sterling (826),1.000000000,255,Debit,55504437018298186287453,02/02/2017,GLOUCESTER CC
Gloucester City Council,23UE,Homelessness,HS010,B&B Payments,1303,24/01/2017,23/01/2017,TRAVELODGE GB0000,THAME,,OX9 3AT,REDACTED,556*********4774,3615,TRAVELODGE,408,Pound Sterling (826),1.000000000,408,Debit,55504437023298122701727,02/02/2017,GLOUCESTER CC
Gloucester City Council,23UE,Homelessness,HS011,B&B Payments,1303,25/01/2017,24/01/2017,TRAVELODGE GB0000,THAME,,OX9 3AT,REDACTED,556*********4774,3615,TRAVELODGE,159,Pound Sterling (826),1.000000000,159,Debit,55504437024298129898772,02/02/2017,GLOUCESTER CC
Gloucester City Council,23UE,Homelessness,HS012,B&B Payments,1303,25/01/2017,24/01/2017,TRAVELODGE GB0000,THAME,,OX9 3AT,REDACTED,556*********4774,3615,TRAVELODGE,408.5,Pound Sterling (826),1.000000000,408.5,Debit,55504437024298129916509,02/02/2017,GLOUCESTER CC
Gloucester City Council,23UE,Homelessness,HS013,B&B Payments,1303,25/01/2017,24/01/2017,TRAVELODGE GB0000,THAME,,OX9 3AT,REDACTED,556*********4774,3615,TRAVELODGE,194,Pound Sterling (826),1.000000000,194,Debit,55504437024298129983046,02/02/2017,GLOUCESTER CC
Gloucester City Council,23UE,Homelessness,HS014,B&B Payments,1303,30/01/2017,27/01/2017,TRAVELODGE GB0000,THAME,,OX9 3AT,REDACTED,556*********4774,3615,TRAVELODGE,136,Pound Sterling (826),1.000000000,136,Debit,55504437027298152539589,02/02/2017,GLOUCESTER CC
Gloucester City Council,23UE,Homelessness,HS015,B&B Payments,1303,31/01/2017,30/01/2017,TRAVELODGE GB0000,THAME,,OX9 3AT,REDACTED,556*********4774,3615,TRAVELODGE,55,Pound Sterling (826),1.000000000,55,Debit,55504437030298175600934,02/02/2017,GLOUCESTER CC
Gloucester City Council,23UE,Homelessness,HS016,B&B Payments,1303,31/01/2017,30/01/2017,TRAVELODGE GB0000,THAME,,OX9 3AT,REDACTED,556*********4774,3615,TRAVELODGE,384,Pound Sterling (826),1.000000000,384,Debit,55504437030298175522401,02/02/2017,GLOUCESTER CC
Gloucester City Council,23UE,Homelessness,HS017,B&B Payments,1303,31/01/2017,30/01/2017,TRAVELODGE GB0000,THAME,,OX9 3AT,REDACTED,556*********4774,3615,TRAVELODGE,384,Pound Sterling (826),1.000000000,384,Debit,55504437030298175481590,02/02/2017,GLOUCESTER CC
Gloucester City Council,23UE,Homelessness,HS018,B&B Payments,1303,31/01/2017,30/01/2017,TRAVELODGE GB0000,THAME,,OX9 3AT,REDACTED,556*********4774,3615,TRAVELODGE,384,Pound Sterling (826),1.000000000,384,Debit,55504437030298175470080,02/02/2017,GLOUCESTER CC
Gloucester City Council,23UE,Homelessness,HS019,B&B Payments,1303,31/01/2017,30/01/2017,TRAVELODGE GB0000,THAME,,OX9 3AT,REDACTED,556*********4774,3615,TRAVELODGE,391,Pound Sterling (826),1.000000000,391,Debit,55504437030298175468621,02/02/2017,GLOUCESTER CC
Gloucester City Council,23UE,Homelessness,HS020,B&B Payments,1303,01/02/2017,31/01/2017,TRAVELODGE GB0000,THAME,,OX9 3AT,REDACTED,556*********4774,3615,TRAVELODGE,132,Pound Sterling (826),1.000000000,132,Debit,55504437031298183276361,02/02/2017,GLOUCESTER CC
Gloucester City Council,23UE,Docks Complex - Services,AM006,Equipment and Furniture,3001,18/01/2017,17/01/2017,B & Q 1179,GLOUCESTER,,GL1 2SG,REDACTED,556*********1053,5211,LUMBER AND BUILDING MATERIALS STORES,18.7,Pound Sterling (826),1.000000000,18.7,Debit,05230657018520079560319,02/02/2017,GLOUCESTER CC
Gloucester City Council,23UE,Docks Complex - Services,AM006,Catering Provisions,3103,30/01/2017,27/01/2017,SAINSBURYS 2221,GLOUCESTER,GBR,GL2 5SA,REDACTED,556*********1053,5411,"GROCERY STORES, SUPERMARKETS",17.8,Pound Sterling (826),1.000000000,17.8,Debit,25425157028030112611550,02/02/2017,GLOUCESTER CC
Gloucester City Council,23UE,Docks Complex - Services,AM006,Equipment and Furniture,3001,30/01/2017,27/01/2017,B & Q 1179,GLOUCESTER,,GL1 2SG,REDACTED,556*********1053,5211,LUMBER AND BUILDING MATERIALS STORES,32,Pound Sterling (826),1.000000000,32,Debit,05230657028460072091905,02/02/2017,GLOUCESTER CC
Gloucester City Council,23UE,Docks Complex - Services,AM006,Catering Provisions,3103,02/02/2017,01/02/2017,SAINSBURYS 2221,GLOUCESTER,GBR,GL2 5SA,REDACTED,556*********1053,5411,"GROCERY STORES, SUPERMARKETS",15,Pound Sterling (826),1.000000000,15,Debit,25425157033060101826367,02/02/2017,GLOUCESTER CC
Gloucester City Council,23UE,Housing Strategy & Enabling,SH001,Mileage and Travel Allowances,2401,31/01/2017,30/01/2017,Trainline,London,GBR,1445,REDACTED,556*********6959,4112,PASSENGER RAILWAYS,9.84,Pound Sterling (826),1.000000000,9.84,Debit,85130087030704636476634,02/02/2017,GLOUCESTER CC
Gloucester City Council,23UE,Gloucester Life Museum,MU005,Printing External,3203,23/01/2017,20/01/2017,VISTAPR*VistaPrint.uk,080-0028825,NLD,LW 5928,REDACTED,556*********5775,2741,MISCELLANEOUS PUBLISHING & PRINTING,168.44,Pound Sterling (826),1.000000000,168.44,Debit,55204727020000838408427,02/02/2017,GLOUCESTER CC
Gloucester City Council,23UE,Guildhall Bar & Caf�,GH005,Catering Provisions,3103,04/01/2017,03/01/2017,WM MORRISON STORE,575 GLOUCESTE,,GL1 4BD,REDACTED,556*********5661,5411,"GROCERY STORES, SUPERMARKETS",70,Pound Sterling (826),1.000000000,70,Debit,05230657004570079461634,02/02/2017,GLOUCESTER CC
Gloucester City Council,23UE,Guildhall Bar & Caf�,GH005,Catering Provisions,3103,06/01/2017,05/01/2017,WM MORRISON STORE,575 GLOUCESTE,,GL1 4BD,REDACTED,556*********5661,5411,"GROCERY STORES, SUPERMARKETS",22.48,Pound Sterling (826),1.000000000,22.48,Debit,05230657006080070584200,02/02/2017,GLOUCESTER CC
Gloucester City Council,23UE,Guildhall Bar & Caf�,GH005,Catering Provisions,3103,09/01/2017,07/01/2017,HOLLAND & BARRETT,GLOUCESTER,,GL1 1PD,REDACTED,556*********5661,5999,MISCELLANEOUS AND RETAIL STORES,11.94,Pound Sterling (826),1.000000000,11.94,Debit,05230657008750078026838,02/02/2017,GLOUCESTER CC
Gloucester City Council,23UE,Guildhall Bar & Caf�,GH005,Catering Provisions,3103,18/01/2017,16/01/2017,WM MORRISON STORE,575 GLOUCESTE,,GL1 4BD,REDACTED,556*********5661,5411,"GROCERY STORES, SUPERMARKETS",20.98,Pound Sterling (826),1.000000000,20.98,Debit,05230657017370078084510,02/02/2017,GLOUCESTER CC
Gloucester City Council,23UE,Guildhall Bar & Caf�,GH005,Catering Provisions,3103,19/01/2017,18/01/2017,BOOKER LIMITED GLOUCES,GLOUCESTER,GBR,GL4 3RT,REDACTED,556*********5661,5811,CATERERS,19.85,Pound Sterling (826),1.000000000,19.85,Debit,55184227018920185102183,02/02/2017,GLOUCESTER CC
Gloucester City Council,23UE,Guildhall Bar & Caf�,GH005,Catering Provisions,3103,24/01/2017,23/01/2017,ALDI,GLOUCESTER,,GL1 5BJ,REDACTED,556*********5661,5411,"GROCERY STORES, SUPERMARKETS",16.95,Pound Sterling (826),1.000000000,16.95,Debit,55541967024495000915466,02/02/2017,GLOUCESTER CC
Gloucester City Council,23UE,Guildhall Bar & Caf�,GH005,Catering Provisions,3103,24/01/2017,23/01/2017,BOOKER LIMITED GLOUCES,GLOUCESTER,GBR,GL4 3RT,REDACTED,556*********5661,5811,CATERERS,83.04,Pound Sterling (826),1.000000000,83.04,Debit,55184227023910239811916,02/02/2017,GLOUCESTER CC
Gloucester City Council,23UE,Guildhall Bar & Caf�,GH005,Catering Provisions,3103,26/01/2017,25/01/2017,ALDI,GLOUCESTER,,GL1 5BJ,REDACTED,556*********5661,5411,"GROCERY STORES, SUPERMARKETS",32.62,Pound Sterling (826),1.000000000,32.62,Debit,55541967026495000805392,02/02/2017,GLOUCESTER CC
Gloucester City Council,23UE,Crematorium,CC003,Building Repairs and Maintenance,1001,06/01/2017,05/01/2017,SCREWFIX DIRECT,YEOVIL,,BA22 8RT,REDACTED,556*********3822,5211,LUMBER AND BUILDING MATERIALS STORES,207.36,Pound Sterling (826),1.000000000,207.36,Debit,05230657006370077545340,02/02/2017,GLOUCESTER CC
Gloucester City Council,23UE,Members Support,DS002,Public Transport - Staff,2402,10/01/2017,09/01/2017,Trainline,London,GBR,1445,REDACTED,556*********3822,4112,PASSENGER RAILWAYS,129.13,Pound Sterling (826),1.000000000,129.13,Debit,85130087009701979206518,02/02/2017,GLOUCESTER CC
Gloucester City Council,23UE,Members Support,DS002,Public Transport - Staff,2402,11/01/2017,10/01/2017,Trainline,London,GBR,1445,REDACTED,556*********3822,4112,PASSENGER RAILWAYS,138.82,Pound Sterling (826),1.000000000,138.82,Debit,85130087010701011959279,02/02/2017,GLOUCESTER CC
Gloucester City Council,23UE,Managing Director & Directors,MT001,Public Transport - Staff,2402,11/01/2017,10/01/2017,Trainline,London,GBR,1445,REDACTED,556*********3822,4112,PASSENGER RAILWAYS,94.96,Pound Sterling (826),1.000000000,94.96,Debit,85130087010701011926567,02/02/2017,GLOUCESTER CC
Gloucester City Council,23UE,Vehicles,CT002,Road Fund License,2101,11/01/2017,10/01/2017,DVLA VEHICLE TAX,0300 1234321,,SA6 7JL,REDACTED,556*********3822,9399,GOVERNMENT SERVICES NOT ELSEWHERE CLASSIFIED,232.5,Pound Sterling (826),1.000000000,232.5,Debit,05230657011390074528407,02/02/2017,GLOUCESTER CC
Gloucester City Council,23UE,Head of Regeneration & Economic Development,MT005,Public Transport - Staff,2402,23/01/2017,20/01/2017,Trainline,London,GBR,1445,REDACTED,556*********3822,4112,PASSENGER RAILWAYS,123.83,Pound Sterling (826),1.000000000,123.83,Debit,85130087020702336281405,02/02/2017,GLOUCESTER CC
Gloucester City Council,23UE,Members Support,DS002,Public Transport - Staff,2402,24/01/2017,23/01/2017,Trainline,London,GBR,1445,REDACTED,556*********3822,4112,PASSENGER RAILWAYS,177.48,Pound Sterling (826),1.000000000,177.48,Debit,85130087023703423671703,02/02/2017,GLOUCESTER CC
Gloucester City Council,23UE,Gloucester Guildhall,GH001,Building Repairs and Maintenance,1001,04/01/2017,03/01/2017,WICKES,GLOUCESTER,,GL2 5DX,REDACTED,556*********8256,5211,LUMBER AND BUILDING MATERIALS STORES,7.98,Pound Sterling (826),1.000000000,7.98,Debit,05230657004230070047219,02/02/2017,GLOUCESTER CC
Gloucester City Council,23UE,Guildhall Bar & Caf�,GH005,Catering Provisions,3103,04/01/2017,03/01/2017,CO-OPERATIVE FOOD,GLOUCESTER,,GL1 1EA,REDACTED,556*********8256,5411,"GROCERY STORES, SUPERMARKETS",1.45,Pound Sterling (826),1.000000000,1.45,Debit,05230657004750076062003,02/02/2017,GLOUCESTER CC
Gloucester City Council,23UE,Gloucester Guildhall,GH001,Other Staff Allowances,0505,05/01/2017,04/01/2017,THE GLOUCESTER COBBLER,GLOUCESTER,GBR,GL1 1RP,REDACTED,556*********8256,7251,"SHOE REPAIR SHOPS, SHOE SHINE PARLORS & HAT CLEANING SHOPS",10,Pound Sterling (826),1.000000000,10,Debit,55184227004920045312994,02/02/2017,GLOUCESTER CC
Gloucester City Council,23UE,Guildhall Events,GH002,Supplies For Resale,3020,09/01/2017,06/01/2017,MIPERMIT PARKING-DOM,INTERNET,GBR,SN15 5FD,REDACTED,556*********8256,7523,AUTOMOBILE PARKING LOTS AND GARAGES,10,Pound Sterling (826),1.000000000,10,Debit,25425157007080094169544,02/02/2017,GLOUCESTER CC
Gloucester City Council,23UE,Guildhall Bar & Caf�,GH005,Catering Provisions,3103,09/01/2017,06/01/2017,B&M RETAIL LTD,HS GLOUCESTER,,GL1 2DH,REDACTED,556*********8256,5310,DISCOUNT STORES,7.34,Pound Sterling (826),1.000000000,7.34,Debit,05230657007190074914367,02/02/2017,GLOUCESTER CC
Gloucester City Council,23UE,Gloucester Guildhall,GH001,Other Staff Allowances,0505,09/01/2017,06/01/2017,WILKO RETAIL LIMIT,GLOUCESTER 14,,GL1 1SL,REDACTED,556*********8256,5722,HOUSEHOLD APPLIANCE STORES,1.55,Pound Sterling (826),1.000000000,1.55,Debit,05230657007120070764490,02/02/2017,GLOUCESTER CC
Gloucester City Council,23UE,Guildhall Events,GH002,Advertising & Publicity,3404,10/01/2017,09/01/2017,FACEBK 24JNWA6E72,www.fb.me/ads,IRL,2,REDACTED,556*********8256,7311,ADVERTISING SERVICES,116.06,Pound Sterling (826),1.000000000,116.06,Debit,15265677009463938731233,02/02/2017,GLOUCESTER CC
Gloucester City Council,23UE,Guildhall Events,GH002,Supplies For Resale,3020,13/01/2017,12/01/2017,MIPERMIT PARKING-DOM,INTERNET,GBR,SN15 5FD,REDACTED,556*********8256,7523,AUTOMOBILE PARKING LOTS AND GARAGES,15,Pound Sterling (826),1.000000000,15,Debit,25425157013020094955098,02/02/2017,GLOUCESTER CC
Gloucester City Council,23UE,Guildhall Events,GH002,Supplies For Resale,3020,17/01/2017,16/01/2017,MIPERMIT PARKING-DOM,INTERNET,GBR,SN15 5FD,REDACTED,556*********8256,7523,AUTOMOBILE PARKING LOTS AND GARAGES,10,Pound Sterling (826),1.000000000,10,Debit,25425157017040094768214,02/02/2017,GLOUCESTER CC
Gloucester City Council,23UE,Guildhall Events,GH002,Supplies For Resale,3020,23/01/2017,20/01/2017,MIPERMIT PARKING-DOM,INTERNET,GBR,SN15 5FD,REDACTED,556*********8256,7523,AUTOMOBILE PARKING LOTS AND GARAGES,10,Pound Sterling (826),1.000000000,10,Debit,25425157021080104593172,02/02/2017,GLOUCESTER CC
Gloucester City Council,23UE,Guildhall Events,GH002,Supplies For Resale,3020,23/01/2017,20/01/2017,MIPERMIT PARKING-DOM,INTERNET,GBR,SN15 5FD,REDACTED,556*********8256,7523,AUTOMOBILE PARKING LOTS AND GARAGES,10,Pound Sterling (826),1.000000000,10,Debit,25425157021080104593263,02/02/2017,GLOUCESTER CC
Gloucester City Council,23UE,Gloucester Guildhall,GH001,General Supplies/Materials,3025,25/01/2017,24/01/2017,WILKO RETAIL LIMIT,GLOUCESTER 14,,GL1 1SL,REDACTED,556*********8256,5722,HOUSEHOLD APPLIANCE STORES,21.5,Pound Sterling (826),1.000000000,21.5,Debit,05230657025410070676903,02/02/2017,GLOUCESTER CC
Gloucester City Council,23UE,Guildhall Workshops,GH007,Equipment and Furniture,3001,27/01/2017,26/01/2017,ARGOS LTD,GLOUCESTER,,GL1 1QN,REDACTED,556*********8256,5310,DISCOUNT STORES,16,Pound Sterling (826),1.000000000,16,Debit,05230657027640079832127,02/02/2017,GLOUCESTER CC
Gloucester City Council,23UE,Gloucester Guildhall,GH001,Stationery,3201,30/01/2017,27/01/2017,WH SMITH,GLOUCESTER,GBR,GL1 1NZ,REDACTED,556*********8256,5994,NEWS DEALERS AND NEWSSTANDS,1.99,Pound Sterling (826),1.000000000,1.99,Debit,25377757028030134315524,02/02/2017,GLOUCESTER CC
Gloucester City Council,23UE,Guildhall Workshops,GH007,Equipment and Furniture,3001,30/01/2017,27/01/2017,ARGOS LTD,GLOUCESTER,,GL1 1QN,REDACTED,556*********8256,5310,DISCOUNT STORES,29.9,Pound Sterling (826),1.000000000,29.9,Debit,05230657028420078563034,02/02/2017,GLOUCESTER CC
Gloucester City Council,23UE,Guildhall Workshops,GH007,Equipment and Furniture,3001,30/01/2017,27/01/2017,ARGOS LTD,GLOUCESTER,,GL1 1QN,REDACTED,556*********8256,5310,DISCOUNT STORES,24,Pound Sterling (826),1.000000000,24,Debit,05230657028500078563116,02/02/2017,GLOUCESTER CC
Gloucester City Council,23UE,Guildhall Events,GH002,Advertising & Publicity,3404,01/02/2017,31/01/2017,FACEBK FR3PQBA6M2,www.fb.me/ads,IRL,2,REDACTED,556*********8256,7311,ADVERTISING SERVICES,5.34,Pound Sterling (826),1.000000000,5.34,Debit,15265677031352966351232,02/02/2017,GLOUCESTER CC
Gloucester City Council,23UE,Gloucester Guildhall,GH001,Equipment and Furniture,3001,01/02/2017,31/01/2017,TOOLSTATION LTD,GLOUCESTER,GBR,GL4 3HX,REDACTED,556*********8256,5251,HARDWARE STORES,43.14,Pound Sterling (826),1.000000000,43.14,Debit,35425157032050135587408,02/02/2017,GLOUCESTER CC
Gloucester City Council,23UE,Guildhall Bar & Caf�,GH005,Equipment and Furniture,3001,01/02/2017,31/01/2017,SECURE RETAIL LTD,INTERNET,GBR,LE67 1TU,REDACTED,556*********8256,7399,BUSINESS SERVICES NOT ELSEWHERE CLASSIFIED,41.34,Pound Sterling (826),1.000000000,41.34,Debit,35425157032050174698496,02/02/2017,GLOUCESTER CC
Gloucester City Council,23UE,Blackfriars,GH010,Advertising & Publicity,3404,01/02/2017,31/01/2017,FACEBK *TJEPBBEEX2,650-543-7818,IRL,UNKNOWN,REDACTED,556*********8256,7311,ADVERTISING SERVICES,1.45,Pound Sterling (826),1.000000000,1.45,Debit,55204727031000052650016,02/02/2017,GLOUCESTER CC
Gloucester City Council,23UE,Guildhall Events,GH002,Professional Advice/Consultant Fees,3952,02/02/2017,01/02/2017,www.groupon.co.uk,www.groupon.c,,,REDACTED,471*********6962,7278,"BUYING/SHOPPING SERVICES, CLUBS",49.99,Pound Sterling (826),1.000000000,49.99,Debit,74987507032014029561452,02/02/2017,GLOUCESTER CC
Gloucester City Council,23UE,Business Transformation,BI006,"ICT Software, Licences & Support",3521,04/01/2017,03/01/2017,WWW.JA.NET,012358222311,,OX11 0SG,REDACTED,556*********3063,8699,MEMBERSHIP ORGANIZATIONS NOT ELSEWHERE CLASSIFIED,192,Pound Sterling (826),1.000000000,192,Debit,55504437003295330511181,02/02/2017,GLOUCESTER CC
Gloucester City Council,23UE,Business Transformation,BI006,"ICT Software, Licences & Support",3521,05/01/2017,04/01/2017,"DRI*Kofax, Inc.","Shannon, Co.",IRL,.,REDACTED,556*********3063,5734,COMPUTER SOFTWARE STORES,569.99,Pound Sterling (826),1.000000000,569.99,Debit,25481047005021608025760,02/02/2017,GLOUCESTER CC
Gloucester City Council,23UE,Financial Services,FS004,Public Transport - Staff,2402,06/01/2017,05/01/2017,Virgin Trains,London,GBR,1445,REDACTED,556*********3063,4112,PASSENGER RAILWAYS,122.3,Pound Sterling (826),1.000000000,122.3,Debit,85130087005700854009033,02/02/2017,GLOUCESTER CC
Gloucester City Council,23UE,Civica Admin Charges,BI002,Professional Advice/Consultant Fees,3952,09/01/2017,06/01/2017,HMCOURTS-SERVICE.G,01452420100,,GL1 2ZG,REDACTED,556*********3063,9222,FINES,2646,Pound Sterling (826),1.000000000,2646,Debit,05230657007690073402124,02/02/2017,GLOUCESTER CC
Gloucester City Council,23UE,Business Transformation,BI006,"ICT Software, Licences & Support",3521,12/01/2017,10/01/2017,"DRI*Kofax, Inc.","Shannon, Co.",IRL,.,REDACTED,556*********3063,5734,COMPUTER SOFTWARE STORES,-287.99,Pound Sterling (826),1.000000000,-287.99,Credit,25481047012021663295820,02/02/2017,GLOUCESTER CC
Gloucester City Council,23UE,Business Transformation,BI006,ICT New Hardware,3523,18/01/2017,17/01/2017,Amazon UK Marketplace,800-279-6620,LUX,L2338,REDACTED,556*********3063,5942,BOOK STORES,80.5,Pound Sterling (826),1.000000000,80.5,Debit,55204727017000102813653,02/02/2017,GLOUCESTER CC
Gloucester City Council,23UE,Business Transformation,BI006,"ICT Software, Licences & Support",3521,20/01/2017,19/01/2017,TOTAL ID LTD,WHITCHURCH,GBR,SY13 2EH,REDACTED,556*********3063,5943,"STATIONERY, OFFICE AND SCHOOL SUPPLY STO",965.94,Pound Sterling (826),1.000000000,965.94,Debit,15425157020070028630046,02/02/2017,GLOUCESTER CC
Gloucester City Council,23UE,Financial Services,FS004,Public Transport - Staff,2402,02/02/2017,01/02/2017,LONDON MIDLAND WEB,07980097418,,B2 4JB,REDACTED,556*********3063,4112,PASSENGER RAILWAYS,14.7,Pound Sterling (826),1.000000000,14.7,Debit,55504437032189333330803,02/02/2017,GLOUCESTER CC
